fUSD/lending_fUSD_20260404
["ID","MTS","AMOUNT","RATE_DAILY","PERIOD"]
[419737445,1775345446458,-150.0,0.00015824,2]
[419737446,1775345446467,-150.0,0.00015825,2]
[419737447,1775345446477,-150.0,0.0001583,2]
[419737448,1775345446487,-29906.50720721,0.0001584,2]
[419737449,1775345446496,-150.0,0.00015842,2]
[419737450,1775345446506,-150.0,0.00015846,2]
[419737451,1775345446516,-150.0,0.00015848,2]
[419737452,1775345446525,-150.0,0.00015848,2]
[419737453,1775345446535,-150.0,0.0001585,2]
[419737454,1775345446544,-150.0,0.00015859,2]
[419737455,1775345446554,-150.0,0.00015861,2]
[419737456,1775345446563,-150.0,0.00015864,2]
[419737457,1775345446573,-150.0,0.00015872,2]
[419737458,1775345446582,-150.0,0.00015873,2]
[419737459,1775345446591,-150.0,0.00015873,2]
[419737460,1775345446601,-150.0,0.00015875,2]
[419737461,1775345446610,-150.0,0.00015877,2]
[419737462,1775345446620,-150.0,0.00015877,2]
[419737463,1775345446631,-150.0,0.00015886,2]
[419737464,1775345446640,-500.0,0.0001589,2]
[419737465,1775345446650,-500.0,0.0001589,2]
[419737466,1775345446660,-500.0,0.0001589,2]
[419737467,1775345446669,-500.0,0.0001589,2]
[419737468,1775345446679,-500.0,0.0001589,2]
[419737469,1775345446689,-500.0,0.0001589,2]
[419737470,1775345446698,-500.0,0.0001589,2]
[419737471,1775345446707,-500.0,0.0001589,2]
[419737472,1775345446717,-533.81087013,0.0001589,2]
[419737473,1775345446727,-150.0,0.00015895,2]
[419737474,1775345446737,-150.0,0.00015898,2]
[419737475,1775345446747,-150.0,0.00015898,2]
[419737476,1775345446757,-150.0,0.00015898,2]
[419737477,1775345446766,-646.11782692,0.00015899,2]
[419737478,1775345446776,-646.11782692,0.00015899,2]
[419737479,1775345446785,-150.0,0.000159,2]
[419737480,1775345446795,-1359.90515633,0.000159,2]
[419737481,1775345446804,-150.0,0.000159,2]
[419737482,1775345446813,-150.0,0.000159,2]
[419737483,1775345446823,-186.5403824,0.000159,2]
[419737484,1775345446832,-150.0,0.000159,2]
[419737485,1775345446842,-150.0,0.000159,2]
[419737486,1775345446851,-150.0,0.000159,2]
[419737487,1775345446861,-17170.69072419,0.000159,3]
[419737488,1775345446871,-150.0,0.000159,2]
[419737489,1775345446880,-150.0,0.000159,2]
[419737490,1775345446890,-176.92215124,0.000159,2]
[419737491,1775345446899,-1100.0,0.000159,5]
[419737492,1775345446908,-150.0,0.000159,2]
[419737493,1775345446918,-46262.38313849,0.000159,2]
[419737494,1775345446927,-3269.6663019,0.000159,2]
[419737495,1775345446936,-336.1557613,0.000159,2]
[419737496,1775345446946,-646.11782692,0.000159,2]
[419737497,1775345446956,-29925.94485272,0.000159,2]
[419737498,1775345446966,-2000.0,0.00015901,2]
[419737499,1775345446976,-150.0,0.00015908,2]
[419737500,1775345446985,-150.0,0.00015912,2]
[419737501,1775345446995,-150.0,0.00015924,2]
[419737502,1775345447005,-150.0,0.00015924,2]
[419737503,1775345447015,-150.0,0.00015925,2]
[419737504,1775345447025,-150.0,0.0001593,2]
[419737505,1775345447035,-150.0,0.0001593,2]
[419737506,1775345447044,-150.0,0.00015932,2]
[419737507,1775345447054,-150.0,0.00015936,2]
[419737508,1775345447063,-150.0,0.00015938,2]
[419737509,1775345447073,-150.0,0.00015947,2]
[419737510,1775345447082,-150.0,0.00015949,2]
[419737511,1775345447092,-150.0,0.00015949,2]
[419737512,1775345447101,-150.0,0.0001595,2]
[419737513,1775345447111,-500.0,0.00015958,2]
[419737514,1775345447121,-4143.0,0.00015959,2]
[419737515,1775345447131,-476.94855107,0.0001596,2]
[419737517,1775345447140,-5000.0,0.0001596,2]
[419737519,1775345447150,-150.0,0.00015965,2]
[419737521,1775345447160,-150.0,0.00015966,2]
[419737523,1775345447170,-150.0,0.00015969,2]
[419737525,1775345447179,-4143.0,0.0001597,2]
[419737527,1775345447189,-532.19,0.00015972,2]
[419737528,1775345447198,-500.0,0.00015973,2]
[419737530,1775345447207,-500.0,0.00015973,2]
[419737532,1775345447217,-160.71962936,0.00015973,2]
[419737534,1775345447226,-500.0,0.00015973,2]
[419737536,1775345447236,-150.0,0.00015975,2]
[419737538,1775345447247,-150.0,0.00015975,2]
[419737539,1775345447256,-150.0,0.00015975,2]
[419737540,1775345447265,-166.66,0.00015976,2]
[419737541,1775345447274,-150.0,0.00015982,2]
[419737542,1775345447283,-1600.0,0.00015986,2]
[419737543,1775345447293,-731.18361116,0.0001599,2]
[419737544,1775345447302,-731.18361116,0.0001599,2]
[419737545,1775345447311,-1404.0429835,0.00015995,2]
[419737546,1775345447320,-151.0,0.00015997,2]
[419737547,1775345447329,-666.0,0.00015999,2]
[419737548,1775345447339,-152.1260409,0.00015999,2]
[419737549,1775345447348,-532.19,0.00015999,2]
[419737550,1775345447358,-532.19,0.00015999,2]
[419737551,1775345447367,-532.19,0.00015999,2]
[419737552,1775345447376,-532.19,0.00015999,2]
[419737553,1775345447386,-532.28319663,0.00015999,2]
[419737554,1775345447395,-500.0,0.00015999,2]
[419737555,1775345447404,-500.0,0.00015999,2]
[419737556,1775345447413,-500.0,0.00015999,2]
[419737557,1775345447422,-500.0,0.00015999,2]
[419737558,1775345447432,-500.0,0.00015999,2]
[419737559,1775345447441,-500.0,0.00015999,2]
[419737560,1775345447450,-500.0,0.00015999,2]
[419737561,1775345447459,-500.0,0.00015999,2]
[419737562,1775345447468,-500.0,0.00015999,2]
[419737563,1775345447477,-500.0,0.00015999,2]
[419737564,1775345447486,-500.0,0.00015999,2]
[419737565,1775345447495,-500.0,0.00015999,2]
[419737566,1775345447504,-500.0,0.00015999,2]
[419737567,1775345447513,-500.0,0.00015999,2]
[419737568,1775345447522,-500.0,0.00015999,2]
[419737569,1775345447531,-500.0,0.00015999,2]
[419737570,1775345447540,-500.0,0.00015999,2]
[419737571,1775345447549,-500.0,0.00015999,2]
[419737572,1775345447559,-500.0,0.00015999,2]
[419737573,1775345447568,-500.0,0.00015999,2]
[419737574,1775345447577,-500.0,0.00015999,2]
[419737575,1775345447587,-500.0,0.00015999,2]
[419737576,1775345447596,-500.0,0.00015999,2]
[419737577,1775345447606,-500.0,0.00015999,2]
[419737578,1775345447616,-500.0,0.00015999,2]
[419737579,1775345447625,-500.0,0.00015999,2]
[419737580,1775345447634,-500.0,0.00015999,2]
[419737581,1775345447643,-500.0,0.00015999,2]
[419737582,1775345447652,-500.0,0.00015999,2]
[419737583,1775345447662,-500.0,0.00015999,2]
[419737584,1775345447671,-500.0,0.00015999,2]
[419737585,1775345447680,-500.0,0.00015999,2]
[419737586,1775345447691,-500.0,0.00015999,2]
[419737587,1775345447700,-500.0,0.00015999,2]
[419737588,1775345447709,-500.0,0.00015999,2]
[419737589,1775345447718,-500.0,0.00015999,2]
[419737590,1775345447728,-500.0,0.00015999,2]
[419737591,1775345447737,-500.0,0.00015999,2]
[419737592,1775345447746,-500.0,0.00015999,2]
[419737593,1775345447755,-242.62789815,0.00015999,2]
[419737594,1775345447764,-150.23775673,0.00016,2]
[419737595,1775345447773,-150.0,0.00016,2]
[419737596,1775345447782,-240.20283738,0.00016,2]
[419737597,1775345447791,-150.0,0.00016,2]
[419737598,1775345447800,-246.16007569,0.00016,2]
[419737599,1775345447809,-296.71799963,0.00016,2]
[419737600,1775345447818,-153.96487141,0.00016,2]
[419737601,1775345447827,-238.66948473,0.00016,2]
[419737602,1775345447836,-153.19744013,0.00016,2]
[419737603,1775345447846,-256.52934676,0.00016,2]
[419737604,1775345447855,-287.70807985,0.00016,2]
[419737605,1775345447864,-150.00000001,0.00016,2]
[419737606,1775345447873,-150.0,0.00016,2]
[419737607,1775345447882,-158.80277884,0.00016,2]
[419737608,1775345447891,-544453.83500515,0.00016,2]
[419737609,1775345448662,-7301.41972174,0.00016,2]
[419737610,1775345448920,-805.78161495,0.00011673,2]
[419737611,1775345448930,-2000.0,0.00015601,2]
[419737612,1775345448939,-2000.0,0.00015701,2]
[419737613,1775345448949,-2000.0,0.00015801,2]
[419737614,1775345448958,-3981548.97465748,0.00016,2]
[419737615,1775345449089,-1341.81419979,0.00016,2]
[419737616,1775345449389,-587.28841621,0.0001585,2]
[419737617,1775345449399,-169004.61791257,0.00016,2]
[419737618,1775345449411,-188223.69639539,0.00016,2]
[419737619,1775345449434,-6193.42926535,0.00016,2]
[419737620,1775345449450,-375.18789012,0.00016,2]
[419737621,1775345449463,-333.86582535,0.00016,2]
[419737622,1775345449474,-7589.74275413,0.00016,2]
[419737623,1775345449486,-1331.38482477,0.00016,2]
[419737624,1775345449933,-267.81012156,0.00013787,2]
[419737625,1775345449945,-537.97149338,0.00013787,2]
[419737626,1775345449954,-417.14204903,0.00016,2]
[419737627,1775345449978,-1712.11696904,0.00016,2]
[419737628,1775345449989,-2293.72232384,0.00016,2]
[419737629,1775345450017,-501.35762562,0.00016,2]
[419737630,1775345450028,-104327.26251832,0.00016,2]
[419737631,1775345450205,-800.6768,0.00016,2]
[419737632,1775345450217,-459.58986104,0.00016,2]
[419737634,1775345525970,-9000000.0,0.00046853,30]
[419737635,1775345530795,-676542.12282451,0.00046853,30]
[419737636,1775345530820,-500.0,0.00046853,30]
[419737637,1775345530844,-428.72137889,0.00046853,120]
[419737638,1775345530870,-279.9726099,0.00046853,30]
[419737639,1775345530897,-241.98592959,0.00046853,120]
[419737640,1775345530923,-395.74586,0.00046853,60]
[419737641,1775345530947,-166.92278,0.00046853,60]
[419737642,1775345530972,-166.92278,0.00046853,60]
[419737643,1775345530997,-395.74586,0.00046853,60]
[419737644,1775345531022,-166.92278,0.00046853,60]
[419737645,1775345531046,-395.74586,0.00046853,60]
[419737646,1775345531071,-166.92278,0.00046853,60]
[419737647,1775345531096,-395.74586,0.00046853,60]
[419737648,1775345531122,-166.92278,0.00046853,60]
[419737649,1775345531146,-395.74586,0.00046853,60]
[419737650,1775345531171,-500.0,0.00046853,30]
[419737651,1775345531196,-500.0,0.00046853,30]
[419737652,1775345531221,-200.0,0.00046853,120]
[419737653,1775345531247,-200.0,0.00046853,120]
[419737654,1775345531271,-200.0,0.00046853,120]
[419737655,1775345531294,-200.0,0.00046853,120]
[419737656,1775345531317,-200.0,0.00046853,120]
[419737657,1775345531340,-200.0,0.00046853,120]
[419737658,1775345531364,-200.0,0.00046853,120]
[419737659,1775345531388,-200.0,0.00046853,120]
[419737660,1775345531414,-200.0,0.00046853,120]
[419737661,1775345531437,-200.0,0.00046853,120]
[419737662,1775345531463,-200.0,0.00046853,120]
[419737663,1775345531486,-200.0,0.00046853,120]
[419737664,1775345531511,-200.0,0.00046853,120]
[419737665,1775345531535,-200.0,0.00046853,120]
[419737666,1775345531558,-282.42136745,0.00046853,120]
[419737667,1775345531581,-1000.0,0.00046853,30]
[419737668,1775345531605,-2052.74774777,0.00046853,120]
[419737669,1775345531629,-1477.74641314,0.00046853,120]
[419737670,1775345531654,-262.0,0.00046853,120]
[419737671,1775345531678,-500.0,0.00046853,30]
[419737672,1775345531704,-1000.0,0.00046853,30]
[419737673,1775345531729,-1000.0,0.00046853,30]
[419737674,1775345531758,-1000000.0,0.00046853,90]
[419737675,1775345531784,-1000000.0,0.00046853,100]
[419737676,1775345531811,-1000000.0,0.00046853,100]
[419737677,1775345531835,-1000.0,0.00046853,30]
[419737678,1775345531862,-1000000.0,0.00046853,50]
[419737679,1775345531890,-1000000.0,0.00046853,50]
[419737680,1775345531916,-1000000.0,0.00046853,40]
[419737681,1775345531940,-1000.0,0.00046853,30]
[419737682,1775345531964,-500.0,0.00046853,30]
[419737683,1775345531987,-500.0,0.00046853,120]
[419737684,1775345532011,-500.0,0.00046853,30]
[419737685,1775345532035,-500.0,0.00046853,30]
[419737686,1775345532060,-500.0,0.00046853,30]
[419737687,1775345532087,-1000000.0,0.00046853,65]
[419737688,1775345532114,-1000000.0,0.00046853,65]
[419737689,1775345532138,-226.4,0.00046853,120]
[419737690,1775345532162,-1000.0,0.00046853,60]
[419737691,1775345532187,-1000.0,0.00046853,30]
[419737692,1775345532210,-1000.0,0.00046853,60]
[419737693,1775345532238,-300092.53852875,0.00046853,120]
[419737694,1775345536833,-699907.46147125,0.00046853,120]
[419737695,1775345536866,-1000.0,0.00046853,30]
[419737696,1775345536892,-1000.0,0.00046853,60]
[419737697,1775345536919,-2630.81483007,0.00046853,120]
[419737698,1775345536948,-1000.0,0.00046853,30]
[419737699,1775345536972,-1000.0,0.00046853,30]
[419737700,1775345536995,-1000.0,0.00046853,60]
[419737701,1775345537019,-1000.0,0.00046853,30]
[419737702,1775345537043,-1970.32909903,0.00046853,60]
[419737703,1775345537067,-1000.0,0.00046853,60]
[419737704,1775345537090,-1000.0,0.00046853,60]
[419737705,1775345537116,-1000.0,0.00046853,30]
[419737706,1775345537140,-1000.0,0.00046853,60]
[419737707,1775345537164,-1000.0,0.00046853,30]
[419737708,1775345537188,-1000.0,0.00046853,30]
[419737709,1775345537407,-900.0,0.00046853,61]
[419737710,1775345537489,-900.0,0.00046853,61]
[419737711,1775345537514,-900.0,0.00046853,61]
[419737712,1775345537539,-900.0,0.00046853,61]
[419737713,1775345537563,-900.0,0.00046853,61]
[419737714,1775345537587,-900.0,0.00046853,61]
[419737715,1775345537614,-900.0,0.00046853,61]
[419737716,1775345537641,-910.93570146,0.00046853,61]
[419737717,1775345537665,-900.0,0.00046853,61]
[419737718,1775345537689,-900.0,0.00046853,61]
[419737719,1775345537713,-900.0,0.00046853,61]
[419737720,1775345537738,-900.0,0.00046853,61]
[419737721,1775345537763,-900.0,0.00046853,61]
[419737722,1775345537786,-2000.0,0.00046853,120]
[419737723,1775345537811,-900.0,0.00046853,61]
[419737724,1775345537836,-900.0,0.00046853,61]
[419737725,1775345537862,-900.0,0.00046853,61]
[419737726,1775345537888,-900.0,0.00046853,61]
[419737727,1775345537915,-900.0,0.00046853,61]
[419737728,1775345537940,-900.0,0.00046853,61]
[419737729,1775345537964,-900.0,0.00046853,61]
[419737730,1775345537989,-900.0,0.00046853,61]
[419737731,1775345538016,-900.0,0.00046853,61]
[419737732,1775345538041,-900.0,0.00046853,61]
[419737733,1775345538069,-900.0,0.00046853,61]
[419737734,1775345538095,-900.0,0.00046853,61]
[419737735,1775345538121,-900.0,0.00046853,61]
[419737736,1775345538147,-900.0,0.00046853,61]
[419737737,1775345538172,-900.0,0.00046853,61]
[419737738,1775345538195,-900.0,0.00046853,61]
[419737739,1775345538219,-900.0,0.00046853,61]
[419737740,1775345538244,-900.0,0.00046853,61]
[419737741,1775345538269,-900.0,0.00046853,61]
[419737742,1775345538296,-900.0,0.00046853,61]
[419737743,1775345538322,-900.0,0.00046853,61]
[419737744,1775345538346,-900.0,0.00046853,61]
[419737745,1775345538370,-900.0,0.00046853,61]
[419737746,1775345538394,-900.0,0.00046853,61]
[419737747,1775345538420,-900.0,0.00046853,61]
[419737748,1775345538447,-900.0,0.00046853,61]
[419737749,1775345538473,-900.0,0.00046853,61]
[419737750,1775345538498,-900.0,0.00046853,61]
[419737751,1775345538526,-900.0,0.00046853,61]
[419737752,1775345538551,-900.0,0.00046853,61]
[419737753,1775345538575,-900.0,0.00046853,61]
[419737754,1775345538599,-900.0,0.00046853,61]
[419737755,1775345538624,-900.0,0.00046853,61]
[419737756,1775345538649,-900.0,0.00046853,61]
[419737757,1775345538673,-900.0,0.00046853,61]
[419737758,1775345538698,-900.0,0.00046853,61]
[419737759,1775345538723,-900.0,0.00046853,61]
[419737760,1775345538750,-900.0,0.00046853,61]
[419737761,1775345538775,-900.0,0.00046853,61]
[419737762,1775345538802,-900.0,0.00046853,61]
[419737763,1775345538826,-900.0,0.00046853,61]
[419737764,1775345538851,-900.0,0.00046853,61]
[419737765,1775345538875,-900.0,0.00046853,61]
[419737766,1775345538900,-2000.0,0.00046853,120]
[419737767,1775345538925,-2000.0,0.00046853,120]
[419737768,1775345538949,-2000.0,0.00046853,120]
[419737769,1775345538972,-2000.0,0.00046853,120]
[419737770,1775345538996,-2000.0,0.00046853,120]
[419737771,1775345539022,-2000.0,0.00046853,120]
[419737772,1775345539048,-2000.0,0.00046853,120]
[419737773,1775345539074,-2000.0,0.00046853,120]
[419737774,1775345539102,-2000.0,0.00046853,120]
[419737775,1775345539126,-500.0,0.00046853,30]
[419737776,1775345539151,-500.0,0.00046853,30]
[419737777,1775345539176,-445.4967894,0.00046853,120]
[419737778,1775345539200,-200.09449045,0.00046853,120]
[419737779,1775345539224,-322.17462381,0.00046853,30]
[419737780,1775345539249,-2000.0,0.00046853,120]
[419737781,1775345539274,-2000.0,0.00046853,120]
[419737782,1775345539300,-2000.0,0.00046853,120]
[419737783,1775345539325,-2000.0,0.00046853,120]
[419737784,1775345539351,-2000.0,0.00046853,120]
[419737785,1775345539376,-2000.0,0.00046853,120]
[419737786,1775345539403,-2000.0,0.00046853,120]
[419737787,1775345539428,-2000.0,0.00046853,120]
[419737788,1775345539453,-2000.0,0.00046853,120]
[419737789,1775345539479,-2000.0,0.00046853,120]
[419737790,1775345539506,-2000.0,0.00046853,120]
[419737791,1775345539532,-2000.0,0.00046853,120]
[419737792,1775345539560,-3261.72354367,0.00046853,120]
[419737793,1775345539584,-2000.0,0.00046853,120]
[419737794,1775345539608,-3729.84989747,0.00046853,30]
[419737795,1775345539632,-2000.0,0.00046853,120]
[419737796,1775345539656,-2000.0,0.00046853,120]
[419737797,1775345539681,-1817.31070074,0.00046853,60]
[419737798,1775345539708,-2000.0,0.00046853,120]
[419737799,1775345539735,-293.3371531,0.00046853,120]
[419737800,1775345539763,-194.81592,0.00046853,60]
[419737801,1775345539789,-2000.0,0.00046853,120]
[419737802,1775345539816,-2000.0,0.00046853,120]
[419737803,1775345539842,-2000.0,0.00046853,120]
[419737804,1775345539871,-2000.0,0.00046853,120]
[419737805,1775345539898,-2000.0,0.00046853,120]
[419737806,1775345539924,-2000.0,0.00046853,120]
[419737807,1775345539952,-565.0,0.00046853,30]
[419737808,1775345539978,-500.0,0.00046853,30]
[419737809,1775345540003,-2000.0,0.00046853,120]
[419737810,1775345540026,-2000.0,0.00046853,120]
[419737811,1775345540051,-2000.0,0.00046853,120]
[419737812,1775345540075,-2000.0,0.00046853,120]
[419737813,1775345540099,-2000.0,0.00046853,120]
[419737814,1775345540124,-394.0,0.00046853,30]
[419737815,1775345540150,-2000.0,0.00046853,120]
[419737816,1775345540176,-2000.0,0.00046853,120]
[419737817,1775345540200,-2000.0,0.00046853,120]
[419737818,1775345540227,-741.0,0.00046853,30]
[419737819,1775345540254,-741.0,0.00046853,120]
[419737820,1775345540280,-2000.0,0.00046853,120]
[419737821,1775345540305,-2000.0,0.00046853,120]
[419737822,1775345540330,-2000.0,0.00046853,120]
[419737823,1775345540354,-2000.0,0.00046853,120]
[419737824,1775345540380,-489.12,0.00046853,120]
[419737825,1775345540405,-7127.0,0.00046853,60]
[419737826,1775345540659,-900.0,0.00046853,120]
[419737827,1775345540686,-411.98422229,0.00046853,120]
[419737828,1775345540711,-1009.0,0.00046853,120]
[419737829,1775345540737,-3144.05036277,0.00046853,90]
[419737830,1775345540761,-2384.04211647,0.00046853,120]
[419737831,1775345540786,-552.19349116,0.00046853,30]
[419737832,1775345540811,-2128.88709133,0.00046853,120]
[419737833,1775345540835,-412.85660421,0.00046853,30]
[419737834,1775345540860,-2545.83874914,0.00046853,120]
[419737835,1775345540884,-1851.54529349,0.00046853,120]
[419737836,1775345540911,-593.58801799,0.00046853,91]
[419737837,1775345540937,-413.12321098,0.00046853,60]
[419737838,1775345540963,-1557.81672896,0.00046853,30]
[419737839,1775345540993,-1221.90348291,0.00046853,30]
[419737840,1775345541020,-3094.34374073,0.00046853,30]
[419737841,1775345541045,-2650.71963001,0.00046853,30]
[419737842,1775345541069,-3141.20188337,0.00046853,120]
[419737843,1775345541094,-317.10338403,0.00046853,30]
[419737844,1775345541118,-3443.27629069,0.00046853,120]
[419737845,1775345541143,-2207.80422295,0.00046853,30]
[419737846,1775345541167,-162.02241579,0.00046853,120]
[419737847,1775345541193,-738.54997242,0.00046853,120]
[419737848,1775345541218,-2967.50384836,0.00046853,60]
[419737849,1775345541242,-898.61197962,0.00046853,30]
[419737850,1775345541267,-3596.98731457,0.00046853,120]
[419737851,1775345541292,-2825.82069794,0.00046853,120]
[419737852,1775345541317,-2635.55675452,0.00046853,120]
[419737853,1775345541342,-2500.0,0.00046853,30]
[419737854,1775345541368,-445.00460303,0.00046853,120]
[419737855,1775345541393,-1916.41892949,0.00046853,120]
[419737856,1775345541418,-3101.03066061,0.00046853,120]
[419737857,1775345541443,-3559.96114388,0.00046853,120]
[419737858,1775345541468,-216.25541622,0.00046853,120]
[419737859,1775345541492,-1169.58290021,0.00046853,120]
[419737860,1775345541516,-1691.788712,0.00046853,120]
[419737861,1775345541541,-206.22182955,0.00046853,120]
[419737862,1775345541566,-2371.94222341,0.00046853,30]
[419737863,1775345541591,-191.32968776,0.00046853,120]
[419737864,1775345541615,-516.76191446,0.00046853,30]
[419737865,1775345541639,-263.60392761,0.00046853,120]
[419737866,1775345541664,-1511.20718081,0.00046853,30]
[419737867,1775345541688,-1498.14905928,0.00046853,120]
[419737868,1775345541712,-301.67756353,0.00046853,120]
[419737869,1775345541737,-1015.09184949,0.00046853,30]
[419737870,1775345541761,-1156.65492032,0.00046853,120]
[419737871,1775345541788,-617.79027525,0.00046853,60]
[419737872,1775345541812,-1634.6635852,0.00046853,120]
[419737873,1775345541836,-469.54626114,0.00046853,120]
[419737874,1775345541861,-224.90940792,0.00046853,30]
[419737875,1775345541885,-1048.96850777,0.00046853,30]
[419737876,1775345541909,-175.97407421,0.00046853,120]
[419737877,1775345541934,-196.01041309,0.00046853,120]
[419737878,1775345541960,-169.07896302,0.00046853,120]
[419737879,1775345541987,-206.23557625,0.00046853,60]
[419737880,1775345542013,-452.04352726,0.00046853,120]
[419737881,1775345542037,-254.93566029,0.00046853,120]
[419737882,1775345542062,-2018.12649132,0.00046853,30]
[419737883,1775345542086,-380.56046421,0.00046853,30]
[419737884,1775345542110,-509.37967475,0.00046853,120]
[419737885,1775345542134,-447.68124922,0.00046853,120]
[419737886,1775345542158,-1691.32575534,0.00046853,120]
[419737887,1775345542183,-818.54794609,0.00046853,120]
[419737888,1775345542207,-1482.34906134,0.00046853,30]
[419737889,1775345542232,-401.13116782,0.00046853,120]
[419737890,1775345542256,-1104.1654403,0.00046853,30]
[419737891,1775345542280,-1382.95922647,0.00046853,120]
[419737892,1775345542304,-264.08487286,0.00046853,120]
[419737893,1775345542328,-453.45574611,0.00046853,120]
[419737894,1775345542353,-1194.02838108,0.00046853,120]
[419737895,1775345542378,-1829.94686669,0.00046853,30]
[419737896,1775345542403,-3170.96176726,0.00046853,120]
[419737897,1775345542427,-232.40495399,0.00046853,120]
[419737898,1775345542451,-260.07790184,0.00046853,120]
[419737899,1775345542475,-450.50560494,0.00046853,120]
[419737900,1775345542499,-258.52406399,0.00046853,120]
[419737901,1775345542523,-2816.14497028,0.00046853,30]
[419737902,1775345542548,-269.32964849,0.00046853,120]
[419737903,1775345542572,-257.27893636,0.00046853,30]
[419737904,1775345542596,-2330.14661253,0.00046853,120]
[419737905,1775345542621,-249.52263319,0.00046853,120]
[419737906,1775345542646,-421.35804489,0.00046853,120]
[419737907,1775345542670,-474.77502589,0.00046853,120]
[419737908,1775345542695,-356.78263401,0.00046853,30]
[419737909,1775345542718,-222.78073513,0.00046853,120]
[419737910,1775345542743,-1667.3473341,0.00046853,30]
[419737911,1775345542767,-216.63914831,0.00046853,120]
[419737912,1775345542791,-191.84268218,0.00046853,120]
[419737913,1775345542815,-1114.71370207,0.00046853,120]
[419737914,1775345542840,-398.55669449,0.00046853,120]
[419737915,1775345542864,-1839.85379615,0.00046853,60]
[419737916,1775345542889,-272.09184609,0.00046853,120]
[419737917,1775345542915,-3069.47309757,0.00046853,120]
[419737918,1775345542940,-259.42432316,0.00046853,120]
[419737919,1775345542965,-2862.59282745,0.00046853,120]
[419737920,1775345542988,-169.47805255,0.00046853,120]
[419737921,1775345543013,-5205.25039848,0.00046853,30]
[419737922,1775345543037,-499.3987938,0.00046853,30]
[419737923,1775345543060,-2086.12387698,0.00046853,120]
[419737924,1775345543085,-288.62954734,0.00046853,30]
[419737925,1775345543111,-2988.87224172,0.00046853,30]
[419737926,1775345543136,-201.83665923,0.00046853,120]
[419737927,1775345543160,-262.05727717,0.00046853,30]
[419737928,1775345543184,-1039.60660266,0.00046853,30]
[419737929,1775345543209,-2373.48684025,0.00046853,30]
[419737930,1775345543234,-263.92211628,0.00046853,120]
[419737931,1775345543258,-374.96661679,0.00046853,120]
[419737932,1775345543282,-1948.03746308,0.00046853,30]
[419737933,1775345543307,-2583.13881185,0.00046853,30]
[419737934,1775345543332,-217.21028496,0.00046853,60]
[419737935,1775345543356,-280.92793638,0.00046853,120]
[419737936,1775345543381,-905.13790892,0.00046853,30]
[419737937,1775345543405,-2477.54612015,0.00046853,30]
[419737938,1775345543429,-1091.97230252,0.00046853,120]
[419737939,1775345543453,-255.02209367,0.00046853,120]
[419737940,1775345543477,-526.53989945,0.00046853,120]
[419737941,1775345543501,-2993.68211696,0.00046853,120]
[419737942,1775345543524,-183.84031951,0.00046853,120]
[419737943,1775345543548,-1426.96709233,0.00046853,120]
[419737944,1775345543775,-4891.14464484,0.00046853,30]
[419737945,1775345543800,-423.61359869,0.00046853,120]
[419737946,1775345543826,-989.35107371,0.00046853,30]
[419737947,1775345543851,-1190.30907227,0.00046853,120]
[419737948,1775345543876,-1845.45848489,0.00046853,120]
[419737949,1775345543902,-1132.44578731,0.00046853,30]
[419737950,1775345543929,-398.09340632,0.00046853,120]
[419737951,1775345543953,-2262.15098342,0.00046853,120]
[419737952,1775345543978,-200.26670902,0.00046853,120]
[419737953,1775345544005,-2149.14662288,0.00046853,30]
[419737954,1775345544031,-2199.48427099,0.00046853,120]
[419737955,1775345544056,-1288.05550704,0.00046853,30]
[419737956,1775345544081,-1563.85894428,0.00046853,30]